[Event "FRA-ch Teams Top 16-Bas 2022"]
[Site "Chartres"]
[Date "2022.06.16"]
[Round "8.29"]
[White "Solakian-Van Eyll, Jerome"]
[Black "Crut, Aurelien"]
[Result "1/2-1/2"]
[ECO "D02"]
[WhiteElo "2248"]
[BlackElo "2355"]
[Annotator "TA"]
[PlyCount "64"]
[EventDate "2022.06.16"]
[EventType "team-tourn"]
[EventCountry "FRA"]
[SourceTitle "playchess.com"]
[Source "ChessBase"]
[SourceQuality "1"]
[TimeControl "40/5400+30:1800+30"]

{[%evp 14,64,0,0,14,14,22,14,22,16,22,18,14,14,14,14,19,14,38,17,86,75,85,55,50,52,57,54,51,50,48,49,61,0,0,0,0,0,0,-12,0,0,0,0,0,0,0,0,0,0,0,0,0]} 1. d4 {[%emt 0:00:06]} d5 {[%emt 0:00:05]} 2. Nf3 {[%emt 0:00:11]} Nf6 {[%emt 0:00:21]} 3. c3 {[%emt 0:00:18]} g6 {[%emt 0:01:18]} 4. Bf4 {[%emt 0:00:41]} Bg7 {[%emt 0:00:18]} 5. e3 {[%emt 0:00:43]} O-O {[%emt 0:00:20]} 6. Be2 {[%emt 0:00:41]} c5 {[%emt 0:02:07]} 7. O-O {[%emt 0:00:13]} Nc6 {[%emt 0:01:52]} 8. h3 {[%emt 0:01:35]} Nd7 {[%emt 0:03:23] D02: 1 d4 d5 2 Nf3 sidelines, including 2...Nf6 3 g3 and 2...Nf6 3 Bf4.} 9. Nbd2 {[%emt 0:02:16]} e5 {[%emt 0:02:14]} 10. Nxe5 {[%emt 0:00:52]} Ndxe5 {[%emt 0:00:40]} 11. dxe5 {[%emt 0:00:07]} Nxe5 {[%emt 0:00:35]} 12. Nf3 {[%emt 0:01:31]} Nxf3+ {[%emt 0:06:17]} 13. Bxf3 {[%emt 0:02:10]} Be6 {[%emt 0:01:57]} 14. Qb3 {[%emt 0:05:26] And now Rfd1 would win.} Qd7 {[%emt 0:21:26]} 15. Rfd1 {[%emt 0:08:08][%cal Rf3d5]} Rad8 {[%emt 0:08:06][%cal Ba8d8,Bd8d7,Bd7b7][%mdl 32] [#]} 16. Rd2 $146 {[%emt 0:34:48]} ({Predecessor:} 16. Rac1 b6 17. Qa3 Qb5 18. Rd2 Rd7 19. Bd1 Qc6 20. Bf3 Qb5 21. Bd1 Qc6 22. Bf3 {0-1 (44) Bae,T (2413)-Mihajlov,S (2372) Norway 2017}) 16... a5 {[%emt 0:22:22]} (16... Qc6 $11 {keeps the balance.}) 17. Qb6 {[%emt 0:09:54][%csl LRa5,LRc5] White is more active.} Qc6 {[%emt 0:02:14]} 18. Qxc6 {[%emt 0:11:25]} bxc6 {[%emt 0:00:05]} 19. Bc7 {[%emt 0:00:37]} Rd7 {[%emt 0:02:51]} 20. Bb6 {[%emt 0:02:01]} ({But not} 20. Bxa5 Ra8 21. Bb6 Bf8 $15) 20... c4 {[%emt 0:01:34]} 21. Bxa5 {[%emt 0:00:26]} Rb8 {[%emt 0:04:41]} 22. Bb4 {[%emt 0:01:49]} Rdb7 {[%emt 0:01:25]} 23. Rad1 {[%emt 0:13:12]} ({White should play} 23. a4 $14) 23... Bf8 $11 {[%emt 0:06:46] The position is equal.} 24. Bxf8 {[%emt 0:00:09]} (24. a3 {is interesting.} c5 25. Bxd5 Bxd5 26. Rxd5 cxb4 27. axb4 Ra7 28. f4) 24... Kxf8 {[%emt 0:00:04]} 25. e4 {[%emt 0:00:14]} Rxb2 {[%emt 0:00:35]} 26. exd5 {[%emt 0:00:19]} cxd5 {[%emt 0:00:58]} 27. Rxb2 {[%emt 0:00:43]} Rxb2 {[%emt 0:00:04]} 28. Bxd5 {[%emt 0:00:20]} Bxd5 {[%emt 0:03:24]} 29. Rxd5 {[%emt 0:00:04] KR-KR} Rb1+ {[%emt 0:00:37]} 30. Kh2 {[%emt 0:00:04]} Rc1 {[%emt 0:00:03]} 31. Rd7 {[%emt 0:00:40]} Rxc3 {[%emt 0:00:07]} 32. Rc7 {[%emt 0:00:14]} Ra3 {[%emt 0:03:13] Weighted Error Value: White=0.07 (flawless) /Black=0.10 (very precise)} 1/2-1/2

[Event "FRA-ch Teams Top 16-Bas 2022"]
[Site "Chartres"]
[Date "2022.06.16"]
[Round "8.30"]
[White "Brailly-Vignal, Bastien"]
[Black "Sohier, Julien"]
[Result "0-1"]
[ECO "D10"]
[WhiteElo "2372"]
[BlackElo "2218"]
[Annotator "TA"]
[PlyCount "92"]
[EventDate "2022.06.16"]
[EventType "team-tourn"]
[EventCountry "FRA"]
[SourceTitle "playchess.com"]
[Source "ChessBase"]
[SourceQuality "1"]
[TimeControl "40/5400+30:1800+30"]

{[%evp 12,92,4,4,6,2,5,7,8,0,10,0,0,-9,-14,-22,-27,-20,-16,-23,-10,-18,-14,-12,-15,-24,-17,-43,-23,-68,-43,-66,-68,-119,-131,-100,-81,-139,-91,-147,-142,-123,-133,-205,-89,-86,-90,-134,-126,-287,-304,-300,-270,-273,-239,-356,-322,-333,-298,-298,-277,-443,-441,-864,-800,-843,-832,-827,-823,-906,-862,-849,-807,-1281,-1250,-1138,-563,-569,-458,-496,-409,-1326,-1207]} 1. d4 {[%emt 0:00:03]} d5 {[%emt 0:01:00]} 2. c4 {[%emt 0:00:06]} c6 {[%emt 0:00:40]} 3. Nc3 {[%emt 0:00:05]} Nf6 {[%emt 0:00:05]} 4. e3 {[%emt 0:00:14]} Bf5 {[%emt 0:00:35]} 5. Qb3 {[%emt 0:05:40]} Qb6 {[%emt 0:01:10]} 6. Qxb6 {[%emt 0:08:16]} axb6 {[%emt 0:00:09]} 7. cxd5 {[%emt 0:00:16]} Nxd5 $1 {[%emt 0:00:04] The main line 7...Nxd5 scores better than 7...cxd5. D10: Slav Defence: 3 cxd5 (without early Nf3) and 3 Nc3.} 8. Nxd5 {[%emt 0:01:24]} cxd5 {[%emt 0:00:04]} 9. Bd2 {[%emt 0:01:08]} Nc6 {[%emt 0:01:20] The position is equal.} 10. Nf3 {[%emt 0:07:12]} f6 {[%emt 0:00:19]} 11. Bb5 {[%emt 0:02:38]} Bd7 {[%emt 0:04:06]} 12. Ke2 {[%emt 0:11:44]} e6 {[%emt 0:10:49]} 13. Bd3 {[%emt 0:11:26]} Nb4 {[%emt 0:21:28]} 14. Bxb4 {[%emt 0:00:50]} Bxb4 {[%emt 0:00:05]} 15. Rhc1 {[%emt 0:02:13]} Bd6 {[%emt 0:03:49] [#]} 16. e4 $146 {[%emt 0:07:57]} ({Predecessor:} 16. g3 Kf7 17. e4 dxe4 18. Bxe4 Bb5+ 19. Ke3 Ba6 20. a3 Rhc8 21. Nd2 g6 22. Bd3 {½-½ (38) Huch,R (2265)-Leeb,S (2219) Bayern 2020}) 16... dxe4 {[%emt 0:09:58]} 17. Bxe4 {[%emt 0:00:12]} Ra7 {[%emt 0:00:25]} (17... Bb5+ {feels hotter.} 18. Ke3 g5 19. g3 Ba6) 18. Nd2 {[%emt 0:05:00]} b5 {[%emt 0:06:18] Against Nc4} 19. a3 {[%emt 0:15:54]} Ke7 {[%emt 0:07:30]} 20. Rab1 {[%emt 0:02:25]} g6 {[%emt 0:04:43][%cal Bg7g6,Bg6g5,Bg5g4][%mdl 32]} 21. Rc3 {[%emt 0:01:35]} f5 {[%emt 0:01:48]} (21... Bxh2 $2 22. g3 $18) 22. Bf3 {[%emt 0:00:43]} (22. Bc2 $15) 22... g5 {[%emt 0:25:05] [#] ...g4 is the strong threat.} ({Much less strong is} 22... Bxh2 23. g3 $14) 23. g3 {[%emt 0:00:44]} h5 {[%emt 0:00:30]} 24. Kf1 {[%emt 0:02:44]} (24. Rbc1 $142) 24... h4 {[%emt 0:00:00]} (24... g4 $142 25. Bg2 b4) 25. Kg1 {[%emt 0:01:00]} (25. b4 $142) 25... g4 $17 {[%emt 0:01:00]} 26. Bg2 h3 {[%emt 0:00:00]} 27. Bh1 {[%emt 0:00:51]} (27. Bf1 $17) 27... Rc8 {[%emt 0:00:00]} (27... b4 $19 {is more deadly.} 28. Rd3 bxa3 29. bxa3 b5) 28. Rxc8 Bxc8 {[%emt 0:00:00]} 29. Rc1 {[%emt 0:00:47]} Bd7 {[%emt 0:00:00]} 30. d5 $2 {[%emt 0:03:08] This costs White the game.} (30. f3 $17) 30... e5 $19 {[%emt 0:00:00]} 31. f3 {[%emt 0:00:01]} gxf3 {[%emt 0:00:00]} 32. Bxf3 {[%emt 0:00:21]} Ra4 {[%emt 0:00:00]} 33. Nb3 {[%emt 0:01:43]} (33. Nb1 {was the only chance.}) 33... b6 {[%emt 0:00:00]} 34. Bd1 {[%emt 0:01:13]} b4 {[%emt 0:00:00]} 35. Nd2 {[%emt 0:00:29]} Ra5 {[%emt 0:00:00]} ({Inferior is} 35... bxa3 36. Bxa4 Bxa4 37. bxa3 $15) 36. a4 {[%emt 0:01:50]} (36. Nc4 $142 Rxd5 37. Nxd6 Rxd6 38. axb4) 36... Rxd5 {[%emt 0:00:15]} 37. Nf3 {[%emt 0:01:20]} (37. Nc4 $142) 37... Bc5+ {[%emt 0:00:14]} 38. Kf1 {[%emt 0:00:16]} e4 {[%emt 0:00:50][%cal Be5e4,Be4e3,Be3e2][%mdl 32]} 39. Ng1 {[%emt 0:02:26]} Be3 {[%emt 0:02:11]} 40. Rb1 {[%emt 0:00:30]} f4 {[%emt 0:00:21]} 41. gxf4 {[%emt 0:31:11]} Bxf4 {[%emt 0:31:20] Threatens to win with ...Rd2.} 42. Bc2 {[%emt 0:02:11]} e3 {[%emt 0:00:00]} 43. Nf3 {[%emt 0:00:00]} Rc5 {[%emt 0:00:00]} (43... Bg4 $142 44. Be4 Bxf3 45. Bxd5 Bxd5) 44. Bd3 {[%emt 0:00:00]} Bxa4 {[%emt 0:00:00]} 45. Ra1 {[%emt 0:00:00]} Ra5 {[%emt 0:00:00][%cal Oa4c2] [#] And now ...Bc2! would win.} 46. Rc1 {[%emt 0:00:00] Prevents Bc2.} (46. Ke2 $142 Bd7 47. Rb1) 46... e2+ {[%emt 0:00:00] Weighted Error Value: White=0.65/Black=0.24 (precise)} 0-1

[Event "FRA-ch Teams Top 16-Bas 2022"]
[Site "Chartres"]
[Date "2022.06.16"]
[Round "8.31"]
[White "Mendeiros, Jerome"]
[Black "Rouler, Charly"]
[Result "1/2-1/2"]
[ECO "A04"]
[WhiteElo "2097"]
[BlackElo "2345"]
[Annotator "TA"]
[PlyCount "93"]
[EventDate "2022.06.16"]
[EventType "team-tourn"]
[EventCountry "FRA"]
[SourceTitle "playchess.com"]
[Source "ChessBase"]
[SourceQuality "1"]
[TimeControl "40/5400+30:1800+30"]

{[%evp 12,93,0,0,12,12,-14,-1,0,0,-1,-6,16,12,22,15,20,20,66,39,37,29,62,52,77,88,69,22,29,33,36,20,41,37,51,49,52,51,75,69,64,66,56,16,34,48,47,54,135,136,133,110,118,-404,131,123,123,126,134,133,124,39,85,36,101,94,124,139,167,116,114,117,117,116,110,109,109,68,69,76,58,58,88,40]} 1. e4 {[%emt 0:00:44]} c5 {[%emt 0:00:01]} 2. Nf3 {[%emt 0:00:14]} e6 {[%emt 0:00:01]} 3. d3 {[%emt 0:00:30]} Nc6 {[%emt 0:00:29]} 4. g3 {[%emt 0:00:19]} g6 {[%emt 0:00:16]} 5. Bg2 {[%emt 0:00:14]} Bg7 {[%emt 0:00:01]} 6. O-O {[%emt 0:00:38]} Nge7 {[%emt 0:00:04]} 7. Re1 {[%emt 0:02:38]} e5 {[%emt 0:00:23] A04: Unusual lines after 1 Nf3 and King's Indian Attack.} 8. Nc3 {[%emt 0:01:24]} d6 {[%emt 0:01:29]} 9. Nd2 {[%emt 0:01:06] [#]} Be6 $146 {[%emt 0:06:25] The position is equal.} ({Predecessor:} 9... O-O 10. Nc4 Be6 11. Ne3 Qd7 12. h4 f5 13. Ned5 Rae8 14. Bg5 Bxd5 15. exd5 Nd8 {0-1 (31) Neumann,F (2047)-Warmerdam,M (2475) Teplice 2019}) 10. Nd5 {[%emt 0:04:08]} O-O {[%emt 0:04:22]} 11. Nc4 {[%emt 0:01:14]} f5 {[%emt 0:02:20][%cal Of5f4]} 12. a4 {[%emt 0:02:21]} Qd7 {[%emt 0:03:07]} 13. c3 {[%emt 0:03:11]} Rae8 {[%emt 0:02:02]} 14. a5 {[%emt 0:03:09]} Nc8 {[%emt 0:01:43]} (14... Rf7 $11 {deserves consideration.}) 15. Rf1 {[%emt 0:06:18]} h6 {[%emt 0:07:23]} 16. exf5 {[%emt 0:12:06]} Bxf5 {[%emt 0:05:39]} 17. Nce3 {[%emt 0:00:46]} Be6 {[%emt 0:05:36]} 18. Qa4 $1 {[%emt 0:03:38]} a6 {[%emt 0:07:37]} 19. Be4 {[%emt 0:10:28]} (19. b4 $14) 19... g5 $1 $11 {[%emt 0:13:30]} 20. Bd2 {[%emt 0:06:02]} Bh3 {[%emt 0:03:22]} 21. Bg2 {[%emt 0:03:13]} Bxg2 {[%emt 0:01:08]} 22. Kxg2 {[%emt 0:00:03]} Qf7 {[%emt 0:05:09][%cal Oe5e4]} 23. Qe4 {[%emt 0:04:35] Active counter play!} Kh8 {[%emt 0:05:53][%cal Oc6d4]} 24. f3 {[%emt 0:04:26]} N8e7 {[%emt 0:02:12]} 25. Nxe7 {[%emt 0:03:37]} Qxe7 {[%emt 0:05:21]} 26. Nd5 {[%emt 0:05:00]} Qf7 {[%emt 0:01:19]} 27. Ra3 {[%emt 0:02:12]} Ne7 {[%emt 0:02:09]} 28. Nxe7 {[%emt 0:03:10]} Rxe7 {[%emt 0:00:17]} 29. c4 {[%emt 0:00:26] Against d5} d5 {[%emt 0:00:43]} ({Better is} 29... Bf6 $14) 30. cxd5 $16 {[%emt 0:01:09]} Rd8 {[%emt 0:01:47]} 31. Be3 {[%emt 0:02:02]} Rxd5 {[%emt 0:05:22]} 32. Rc1 $2 {[%emt 0:02:39][%mdl 8192] [#]} (32. h4 $16 {keeps the pressure on.}) 32... Red7 $2 {[%emt 0:01:30]} (32... Rd4 $1 $19 {[%cal Rd4e4][%mdl 512]} 33. Bxd4 exd4 34. Rxc5 (34. Qg4 $2 h5 $19) 34... Rxe4 35. fxe4 Qe6) 33. Bxc5 {[%emt 0:02:20]} Bf6 {[%emt 0:02:56]} 34. Rac3 {[%emt 0:05:12]} Kg7 {[%emt 0:00:14]} 35. Bb6 {[%emt 0:00:39]} Qg6 {[%emt 0:04:27]} 36. Rd1 {[%emt 0:01:25]} (36. Rc7 $16 Qxe4 37. dxe4) 36... Rb5 {[%emt 0:00:50] [#]} (36... Qxe4 $14 {feels stronger.} 37. fxe4 Rb5) 37. Rd2 {[%emt 0:01:11]} (37. Qe2 $1 $16) 37... Be7 {[%emt 0:00:52]} (37... Qxe4 $14 38. fxe4 Kg6) 38. Rdc2 {[%emt 0:01:42]} Rbd5 {[%emt 0:00:26]} 39. Rc7 {[%emt 0:01:37]} Rxd3 {[%emt 0:00:47]} 40. Rxd7 {[%emt 0:00:27]} ({Don't play} 40. Qxe5+ Bf6 41. Qe2 h5 $16) (40. Qxb7 $18 {And now g4 would win.} g4 41. Rxd7 Rxd7 42. Qxd7 Qxc2+ 43. Kh1 Qc1+ 44. Bg1) 40... Rxd7 {[%emt 0:00:18]} (40... Qxe4 $2 41. Rxe7+ (41. fxe4 Rxd7 42. Rc7 Rxc7 $11) 41... Kf8 42. fxe4 $18) 41. Qxe5+ {[%emt 0:30:37]} Bf6 {[%emt 0:30:14]} 42. Qe2 {[%emt 0:00:00]} Qf5 {[%emt 0:00:00]} 43. b4 {[%emt 0:00:00]} h5 {[%emt 0:00:00]} 44. Rc7 {[%emt 0:00:00]} Rxc7 {[%emt 0:00:00]} 45. Bxc7 {[%emt 0:00:00]} Qd5 {[%emt 0:00:00]} 46. Bb6 {[%emt 0:00:00] Against Qd4} g4 {[%emt 0:00:00]} 47. Bc5 {[%emt 0:00:00] Weighted Error Value: White=0.28 (precise) /Black=0.35} 1/2-1/2

[Event "FRA-ch Teams Top 16-Bas 2022"]
[Site "Chartres"]
[Date "2022.06.16"]
[Round "8.32"]
[White "Djidjeli, Sarah"]
[Black "Auvray, Juliette"]
[Result "0-1"]
[ECO "B75"]
[WhiteElo "2040"]
[BlackElo "1970"]
[Annotator "NA RC"]
[PlyCount "124"]
[EventDate "2022.06.16"]
[EventType "team-tourn"]
[EventCountry "FRA"]
[SourceTitle "playchess.com"]
[Source "ChessBase"]
[SourceQuality "1"]
[TimeControl "40/5400+30:1800+30"]

1. e4 {[%emt 0:00:01]} c5 {[%emt 0:00:05]} 2. Nf3 {[%emt 0:00:03]} d6 {[%emt 0:00:07]} 3. d4 {[%emt 0:00:03]} cxd4 {[%emt 0:00:07]} 4. Nxd4 {[%emt 0:00:03]} Nf6 {[%emt 0:00:20]} 5. Nc3 {[%emt 0:00:04]} g6 {[%emt 0:00:37]} 6. Be3 {[%emt 0:00:05]} Bg7 {[%emt 0:00:55]} 7. f3 {[%emt 0:00:06]} a6 {[%emt 0:01:05]} 8. Bc4 {[%emt 0:03:41]} Nbd7 {[%emt 0:06:59]} 9. Qd2 {[%emt 0:06:27]} h5 {[%emt 0:03:13]} 10. a4 {[%emt 0:21:03]} Ne5 {[%emt 0:10:09]} 11. Bb3 {[%emt 0:01:04]} Qc7 {[%emt 0:03:14]} 12. O-O {[%emt 0:11:47]} O-O {[%emt 0:04:47]} 13. Nde2 {[%emt 0:11:19]} Kh7 {[%emt 0:06:02]} 14. Nf4 {[%emt 0:00:14]} e6 {[%emt 0:11:27]} 15. a5 {[%emt 0:03:33]} Ne8 {[%emt 0:05:42]} 16. Bb6 {[%emt 0:02:03]} Nc4 {[%emt 0:03:09]} 17. Bxc4 {[%emt 0:00:04]} Qxc4 {[%emt 0:00:06]} 18. Nh3 {[%emt 0:00:35]} Bd7 {[%emt 0:03:49]} 19. f4 {[%emt 0:03:24]} Rc8 {[%emt 0:04:50]} 20. Ra3 {[%emt 0:04:16]} Bc6 {[%emt 0:04:14]} 21. f5 {[%emt 0:05:38]} exf5 {[%emt 0:03:05]} 22. exf5 {[%emt 0:00:28]} Qg4 {[%emt 0:03:54]} 23. Be3 {[%emt 0:08:44]} Be5 {[%emt 0:03:29]} 24. fxg6+ {[%emt 0:03:40]} Qxg6 {[%emt 0:01:27]} 25. Nf4 {[%emt 0:01:29]} Bxf4 {[%emt 0:02:13]} 26. Bxf4 {[%emt 0:00:03]} Rg8 {[%emt 0:01:18]} 27. Rf2 {[%emt 0:00:04]} Nf6 {[%emt 0:01:06]} 28. h3 {[%emt 0:00:57]} Bd7 {[%emt 0:02:36]} 29. Qd3 {[%emt 0:01:35]} Bf5 {[%emt 0:04:58]} 30. Qg3 {[%emt 0:00:06]} Be6 {[%emt 0:02:38]} 31. Qxg6+ {[%emt 0:00:11]} Rxg6 {[%emt 0:00:10]} 32. Bxd6 {[%emt 0:02:06]} Bxh3 {[%emt 0:02:12]} 33. Be7 {[%emt 0:02:19]} Nd7 {[%emt 0:00:42]} 34. Nd5 {[%emt 0:01:19]} Be6 {[%emt 0:01:23]} 35. Nf4 {[%emt 0:00:10]} Rg4 {[%emt 0:01:20]} 36. Nxh5 {[%emt 0:02:35]} Rcc4 {[%emt 0:00:36]} 37. Rd3 {[%emt 0:02:40]} Kg6 {[%emt 0:01:13]} 38. Nf6 {[%emt 0:02:30]} Nxf6 {[%emt 0:00:15]} 39. Rxf6+ {[%emt 0:00:18]} Kg7 {[%emt 0:00:19]} 40. Rf2 {[%emt 0:00:52]} Ra4 {[%emt 0:02:05]} 41. Bf6+ {[%emt 0:31:21]} Kg6 {[%emt 0:31:56]} 42. Bc3 {[%emt 0:00:08]} Ra1+ {[%emt 0:00:00]} 43. Rf1 {[%emt 0:00:00]} Rxf1+ {[%emt 0:00:00]} 44. Kxf1 {[%emt 0:00:00]} Bc4 {[%emt 0:00:00]} 45. Kf2 {[%emt 0:00:00]} Bxd3 {[%emt 0:00:00]} 46. cxd3 {[%emt 0:00:00]} Kf5 {[%emt 0:00:00]} 47. g3 {[%emt 0:00:00]} Rg6 {[%emt 0:00:00]} 48. Kf3 {[%emt 0:00:00]} Rd6 {[%emt 0:00:00]} 49. d4 {[%emt 0:00:00]} b6 {[%emt 0:00:00]} 50. axb6 {[%emt 0:00:00]} Rxb6 {[%emt 0:00:00]} 51. d5 {[%emt 0:00:00]} Rg6 {[%emt 0:00:00]} 52. Bd4 {[%emt 0:00:00]} Rg4 {[%emt 0:00:00]} 53. Bc3 {[%emt 0:00:00]} Rc4 {[%emt 0:00:00]} 54. Ke3 {[%emt 0:00:00]} Re4+ {[%emt 0:00:00]} 55. Kf3 {[%emt 0:00:00]} Rg4 {[%emt 0:00:00]} 56. Bf6 {[%emt 0:00:00]} a5 {[%emt 0:01:53]} 57. d6 {[%emt 0:00:00]} Rxg3+ {[%emt 0:02:16]} 58. Kxg3 {[%emt 0:00:00]} Kxf6 {[%emt 0:00:06]} 59. Kf4 {[%emt 0:00:00]} Ke6 {[%emt 0:00:05]} 60. Kg5 {[%emt 0:00:00]} Kxd6 {[%emt 0:00:23]} 61. Kf6 {[%emt 0:00:00]} Kc5 {[%emt 0:00:06]} 62. Kxf7 {[%emt 0:00:00]} Kb4 {[%emt 0:00:06]} 0-1

[Event "FRA-ch Teams Top 16-Bas 2022"]
[Site "Chartres"]
[Date "2022.06.17"]
[Round "9.1"]
[White "Kulaots, Kaido"]
[Black "Song, Julien"]
[Result "1-0"]
[ECO "C42"]
[WhiteElo "2537"]
[BlackElo "2388"]
[Annotator "TA"]
[PlyCount "111"]
[EventDate "2022.06.16"]
[EventType "team-tourn"]
[EventCountry "FRA"]
[SourceTitle "playchess.com"]
[Source "ChessBase"]
[SourceQuality "1"]
[TimeControl "40/5400+30:1800+30"]

{[%evp 25,111,36,35,33,40,27,26,27,36,19,22,18,25,9,18,14,15,4,27,24,25,12,30,34,28,26,32,28,38,29,37,6,11,13,54,61,132,126,122,130,126,129,122,132,127,127,124,127,135,137,139,135,139,135,256,256,296,185,186,0,286,283,379,337,378,375,459,490,490,449,485,478,460,414,897,923,899,895,890,893,785,730,1186,1192,4760,5065,1259,1101]} 1. e4 {[%emt 0:07:35]} e5 {[%emt 0:00:29]} 2. Nf3 {[%emt 0:00:14]} Nf6 {[%emt 0:00:46][%cal Bg8f6,Bf6e4,Be4d2][%mdl 32]} 3. Nxe5 {[%emt 0:00:47]} d6 {[%emt 0:00:24]} 4. Nf3 {[%emt 0:00:09]} Nxe4 {[%emt 0:00:20]} 5. d4 {[%emt 0:00:05]} d5 {[%emt 0:00:31]} 6. Bd3 {[%emt 0:00:05]} Nc6 {[%emt 0:00:57]} 7. O-O {[%emt 0:00:31]} Be7 {[%emt 0:00:55]} 8. Nbd2 {[%emt 0:06:07]} Bf5 {[%emt 0:02:09]} 9. Re1 {[%emt 0:06:25]} Nxd2 {[%emt 0:01:31]} 10. Qxd2 {[%emt 0:00:45]} Bxd3 {[%emt 0:00:26]} 11. Qxd3 {[%emt 0:00:05]} O-O {[%emt 0:00:16]} 12. c3 {[%emt 0:03:00]} Qd7 {[%emt 0:03:28]} 13. Bf4 {[%emt 0:02:37]} a6 {[%emt 0:01:11]} 14. Re2 {[%emt 0:06:10] C42: Petroff Defence: 3 Nxe5 and unusual White 3rd moves.} Rae8 {[%emt 0:01:12]} 15. Rae1 {[%emt 0:00:59]} Bd8 {[%emt 0:00:59]} 16. h3 {[%emt 0:02:34] White has an edge.} Rxe2 {[%emt 0:02:01]} 17. Qxe2 {[%emt 0:02:43]} f6 {[%emt 0:01:52]} 18. Nd2 {[%emt 0:03:16]} a5 {[%emt 0:05:35] [#]} 19. Qb5 $146 {[%emt 0:27:04]} ({Predecessor:} 19. Nb3 b6 20. Qb5 Ne5 21. Qxd7 Nxd7 22. a4 Kf7 23. Nd2 Re8 24. Rxe8 Kxe8 25. b4 {½-½ (46) Wan,Y (2500)-Bai,J (2588) China 2018}) 19... Ne5 $1 {[%emt 0:30:41]} 20. Qxd7 {[%emt 0:00:33]} ({Don't go for} 20. Qxa5 $2 Nd3 21. Bd6 Qxd6 $19) 20... Nxd7 {[%emt 0:00:14]} 21. c4 {[%emt 0:02:04]} dxc4 {[%emt 0:18:46]} 22. Nxc4 {[%emt 0:00:27]} b6 {[%emt 0:00:03]} 23. g4 {[%emt 0:06:41]} Kf7 {[%emt 0:08:34]} 24. Kg2 {[%emt 0:04:10]} Re8 {[%emt 0:02:27]} 25. Re3 {[%emt 0:01:00]} Nf8 {[%emt 0:02:10]} 26. d5 {[%emt 0:00:44] Inhibits Ne6.} Ng6 {[%emt 0:00:50]} 27. Bg3 {[%emt 0:00:45]} Rxe3 {[%emt 0:04:45]} 28. fxe3 $11 {[%emt 0:00:26][%mdl 4096] Endgame KBN-KBN} Ke7 {[%emt 0:00:52]} 29. e4 {[%emt 0:01:31]} a4 {[%emt 0:05:49]} 30. Ne3 {[%emt 0:07:50]} Kf7 {[%emt 0:01:18]} (30... Ne5 $14) 31. Nd1 $16 {[%emt 0:01:43]} Ke7 {[%emt 0:03:35]} 32. Nc3 {[%emt 0:01:18]} a3 {[%emt 0:00:08]} 33. b3 {[%emt 0:02:35]} Kd7 {[%emt 0:00:14]} 34. Nb5 {[%emt 0:00:12]} c6 {[%emt 0:00:35]} 35. dxc6+ {[%emt 0:00:48]} Kxc6 {[%emt 0:00:04]} 36. Nxa3 {[%emt 0:00:07]} b5 {[%emt 0:01:43]} 37. Nc2 {[%emt 0:00:17] Black must now prevent Nd4+.} Bb6 {[%emt 0:00:29] Inhibits Nd4+.} 38. Kf3 {[%emt 0:03:21]} Bc5 {[%emt 0:00:03]} 39. Ne1 {[%emt 0:01:05]} b4 {[%emt 0:00:52]} (39... Nf8 $16 {keeps fighting.} 40. Nd3 Ng6) 40. Nd3 $18 {[%emt 0:00:22]} Bf8 {[%emt 0:00:36]} 41. Ke3 {[%emt 0:02:00] [#] Kd4 is the strong threat.} Bc5+ {[%emt 0:08:45]} 42. Kf3 $2 {[%emt 0:04:31]} ({White should play} 42. Nxc5 $18 Kxc5 43. h4) 42... Be7 $2 {[%emt 0:10:21][%mdl 8192]} (42... Bf8 $1 $11 {and Black stays safe.}) 43. h4 {[%emt 0:08:20][%cal Bh3h4,Bh4h5][%mdl 32]} Kb5 {[%emt 0:07:25]} 44. h5 {[%emt 0:00:54]} Nf8 {[%emt 0:00:10]} 45. e5 {[%emt 0:00:45]} Ne6 {[%emt 0:02:00]} 46. Ke4 {[%emt 0:01:12] Against Nd4} fxe5 {[%emt 0:01:47]} 47. Kxe5 {[%emt 0:01:59]} Ng5 {[%emt 0:00:11]} 48. Kd5 {[%emt 0:01:29]} Nf3 {[%emt 0:01:17]} 49. Bf4 {[%emt 0:05:53]} g6 {[%emt 0:02:24]} (49... Bf6 $142 50. Nc5 Nh4) 50. hxg6 {[%emt 0:01:51] White is clearly winning.} hxg6 {[%emt 0:00:01]} 51. Ne5 {[%emt 0:01:58]} Ng1 {[%emt 0:01:09]} 52. Nxg6 {[%emt 0:00:22]} Bd8 {[%emt 0:00:32]} 53. Bd2 {[%emt 0:01:41]} Nf3 {[%emt 0:00:27]} 54. Be3 {[%emt 0:01:11]} Bg5 {[%emt 0:00:37]} 55. Bxg5 {[%emt 0:00:18]} Nxg5 {[%emt 0:00:02]} 56. Ne5 {[%emt 0:00:17] Weighted Error Value: White=0.12 (very precise) /Black=0.30} 1-0

[Event "FRA-ch Teams Top 16-Bas 2022"]
[Site "Chartres"]
[Date "2022.06.17"]
[Round "9.2"]
[White "Relange, Eloi"]
[Black "Neiksans, Arturs"]
[Result "1/2-1/2"]
[WhiteElo "2456"]
[BlackElo "2579"]
[Annotator "TA"]
[PlyCount "18"]
[EventDate "2022.06.16"]
[EventType "team-tourn"]
[EventCountry "FRA"]
[SourceTitle "playchess.com"]
[Source "ChessBase"]
[SourceQuality "1"]
[TimeControl "40/5400+30:1800+30"]

{[%evp 9,18,22,25,37,29,0,0,0,0,0,0]} 1. Nf3 {[%emt 0:02:31]} d5 {[%emt 0:00:16]} 2. d4 {[%emt 0:00:30]} e6 {[%emt 0:00:12]} 3. c4 {[%emt 0:00:09]} a6 {[%emt 0:00:16]} 4. cxd5 {[%emt 0:01:07]} exd5 {[%emt 0:00:06]} 5. Nc3 {[%emt 0:00:14]} c6 {[%emt 0:00:15]} 6. e4 {[%emt 0:07:59] D31: Queen's Gambit Declined: Semi-Slav without ...Nf6 (+ Marshall Gambit and Noteboom) and Exchange Variation lines without ...Nf6.} dxe4 {[%emt 0:00:24]} 7. Nxe4 {[%emt 0:00:40] Threatens to win with Bc4.} Nf6 {[%emt 0:02:09] The position is equal.} 8. Nxf6+ {[%emt 0:11:23]} Qxf6 {[%emt 0:00:47] [#]} 9. Bc4 $146 {[%emt 0:00:45] And now 0-0 would win.} ({Predecessor:} 9. a3 Bd6 10. Bg5 Qe6+ 11. Be2 h6 12. Bh4 O-O 13. O-O Qg6 14. Re1 Bf5 15. Bg3 Bxg3 16. hxg3 {½-½ (44) Doshi,M (2368)-Harsha,B (2485) Chess.com INT 2022}) 9... Bb4+ {[%emt 0:10:41] An uneventful encounter.  Weighted Error Value: White=0.01 (flawless) /Black=0.01 (flawless)} 1/2-1/2